Workbook

Sheet Januar
A1: JANUAR
A2: Onlinesalg | C2: Auktions-id | D2: Varebeskrivelse | E2: Købspris | F2: Salgspris | G2: Onlinegebyrer | H2: PayPal-gebyrer | I2: Kreditkortgebyrer | J2: Forsendelsesgebyr | K2: Forsendelsesgebyr2 | L2: Profit/tab af salg | M2: Leveringsprofit/-tab | N2: Total profit/tab
A3: År | C3: TS001 | D3: Vare 1 | E3: kr. 5.00 | F3: kr. 4.00 | G3: kr. 2.00 | H3: kr. 1.50 | I3: kr. 0.00 | J3: kr. 4.00 | K3: kr. 2.00 | L3: =IFERROR(Januarsalg[Salgspris]-(Januarsalg[Købspris]+Januarsalg[Onlinegebyrer]+Januarsalg[PayPal-gebyrer]+Januarsalg[Kreditkortgebyrer]),"") -> -4.5 | M3: =Januarsalg[Forsendelsesgebyr]-Januarsalg[Forsendelsesgebyr2] -> kr. 2.00 | N3: =Januarsalg[Profit/tab af salg]+Januarsalg[Leveringsprofit/-tab] -> -2.5
A4: kr. 2,012.00 | C4: TP004 | D4: Vare 2 | E4: kr. 2.00 | F4: kr. 30.00 | G4: kr. 0.50 | H4: kr. 0.50 | J4: kr. 4.00 | K4: kr. 5.50 | L4: =IFERROR(Januarsalg[Salgspris]-(Januarsalg[Købspris]+Januarsalg[Onlinegebyrer]+Januarsalg[PayPal-gebyrer]+Januarsalg[Kreditkortgebyrer]),"") -> kr. 27.00 | M4: =Januarsalg[Forsendelsesgebyr]-Januarsalg[Forsendelsesgebyr2] -> -1.5 | N4: =Januarsalg[Profit/tab af salg]+Januarsalg[Leveringsprofit/-tab] -> kr. 25.50
C5: RS99 | D5: Vare 3 | E5: kr. 17.00 | F5: kr. 23.00 | G5: kr. 2.00 | I5: kr. 2.00 | J5: kr. 3.00 | K5: kr. 2.00 | L5: =IFERROR(Januarsalg[Salgspris]-(Januarsalg[Købspris]+Januarsalg[Onlinegebyrer]+Januarsalg[PayPal-gebyrer]+Januarsalg[Kreditkortgebyrer]),"") -> kr. 2.00 | M5: =Januarsalg[Forsendelsesgebyr]-Januarsalg[Forsendelsesgebyr2] -> kr. 1.00 | N5: =Januarsalg[Profit/tab af salg]+Januarsalg[Leveringsprofit/-tab] -> kr. 3.00
A6: Total profit/tab | C6: ST001 | D6: Vare 4 | E6: kr. 120.00 | F6: kr. 180.00 | G6: kr. 2.00 | H6: kr. 1.50 | J6: kr. 3.00 | K6: kr. 2.00 | L6: =IFERROR(Januarsalg[Salgspris]-(Januarsalg[Købspris]+Januarsalg[Onlinegebyrer]+Januarsalg[PayPal-gebyrer]+Januarsalg[Kreditkortgebyrer]),"") -> kr. 56.50 | M6: =Januarsalg[Forsendelsesgebyr]-Januarsalg[Forsendelsesgebyr2] -> kr. 1.00 | N6: =Januarsalg[Profit/tab af salg]+Januarsalg[Leveringsprofit/-tab] -> kr. 57.50
A7: =Januarsalg[[#Totals],[Total profit/tab]] -> kr. 89.00 | C7: ST001 | D7: Vare 5 | E7: kr. 10.00 | F7: kr. 12.00 | G7: kr. 2.00 | H7: kr. 1.50 | J7: kr. 14.00 | K7: kr. 7.00 | L7: =IFERROR(Januarsalg[Salgspris]-(Januarsalg[Købspris]+Januarsalg[Onlinegebyrer]+Januarsalg[PayPal-gebyrer]+Januarsalg[Kreditkortgebyrer]),"") -> -1.5 | M7: =Januarsalg[Forsendelsesgebyr]-Januarsalg[Forsendelsesgebyr2] -> kr. 7.00 | N7: =Januarsalg[Profit/tab af salg]+Januarsalg[Leveringsprofit/-tab] -> kr. 5.50
C8: Total | D8: ="Antal solgte varer: "&SUBTOTAL(103,Januarsalg[Varebeskrivelse]) -> Antal solgte varer: 5 | E8: =SUBTOTAL(109,Januarsalg[Købspris]) -> kr. 154.00 | F8: =SUBTOTAL(109,Januarsalg[Salgspris]) -> kr. 249.00 | G8: =SUBTOTAL(109,Januarsalg[Onlinegebyrer]) -> kr. 8.50 | H8: =SUBTOTAL(109,Januarsalg[PayPal-gebyrer]) -> kr. 5.00 | I8: =SUBTOTAL(109,Januarsalg[Kreditkortgebyrer]) -> kr. 2.00 | J8: =SUBTOTAL(109,Januarsalg[Forsendelsesgebyr]) -> kr. 28.00 | K8: =SUBTOTAL(109,Januarsalg[Forsendelsesgebyr2]) -> kr. 18.50 | L8: =SUBTOTAL(109,Januarsalg[Profit/tab af salg]) -> kr. 79.50 | M8: =SUBTOTAL(109,Januarsalg[Leveringsprofit/-tab]) -> kr. 9.50 | N8: =SUBTOTAL(109,Januarsalg[Total profit/tab]) -> kr. 89.00
A9: Profit/tab-tendens

Sheet Februar
A1: FEBRUAR
A2: Onlinesalg | C2: Auktions-id | D2: Varebeskrivelse | E2: Købspris | F2: Salgspris | G2: Onlinegebyrer | H2: PayPal-gebyrer | I2: Kreditkortgebyrer | J2: Forsendelsesgebyr | K2: Forsendelsesgebyr2 | L2: Profit/tab af salg | M2: Leveringsprofit/-tab | N2: Total profit/tab
A3: År | C3: TS020 | D3: Vare 1 | E3: kr. 10.00 | F3: kr. 175.00 | G3: kr. 3.00 | H3: kr. 1.50 | I3: kr. 0.00 | J3: kr. 7.00 | K3: kr. 5.00 | L3: =IFERROR(Februarsalg[Salgspris]-(Februarsalg[Købspris]+Februarsalg[Onlinegebyrer]+Februarsalg[PayPal-gebyrer]+Februarsalg[Kreditkortgebyrer]),"") -> kr. 160.50 | M3: =Februarsalg[Forsendelsesgebyr]-Februarsalg[Forsendelsesgebyr2] -> kr. 2.00 | N3: =Februarsalg[Profit/tab af salg]+Februarsalg[Leveringsprofit/-tab] -> kr. 162.50
A4: =Salgsår -> kr. 2,012.00 | C4: TS021 | D4: Vare 2 | E4: kr. 32.00 | F4: kr. 100.00 | G4: kr. 3.00 | I4: kr. 3.20 | J4: kr. 20.00 | K4: kr. 13.00 | L4: =IFERROR(Februarsalg[Salgspris]-(Februarsalg[Købspris]+Februarsalg[Onlinegebyrer]+Februarsalg[PayPal-gebyrer]+Februarsalg[Kreditkortgebyrer]),"") -> kr. 61.80 | M4: =Februarsalg[Forsendelsesgebyr]-Februarsalg[Forsendelsesgebyr2] -> kr. 7.00 | N4: =Februarsalg[Profit/tab af salg]+Februarsalg[Leveringsprofit/-tab] -> kr. 68.80
C5: TS022 | D5: Vare 3 | E5: kr. 3.00 | F5: kr. 7.00 | G5: kr. 2.00 | I5: kr. 2.00 | J5: kr. 0.50 | K5: kr. 1.20 | L5: =IFERROR(Februarsalg[Salgspris]-(Februarsalg[Købspris]+Februarsalg[Onlinegebyrer]+Februarsalg[PayPal-gebyrer]+Februarsalg[Kreditkortgebyrer]),"") -> kr. 0.00 | M5: =Februarsalg[Forsendelsesgebyr]-Februarsalg[Forsendelsesgebyr2] -> -0.7 | N5: =Februarsalg[Profit/tab af salg]+Februarsalg[Leveringsprofit/-tab] -> -0.7
A6: Total profit/tab | C6: TS023 | D6: Vare 4 | E6: kr. 22.00 | F6: kr. 18.00 | G6: kr. 3.00 | H6: kr. 1.50 | J6: kr. 7.00 | K6: kr. 10.00 | L6: =IFERROR(Februarsalg[Salgspris]-(Februarsalg[Købspris]+Februarsalg[Onlinegebyrer]+Februarsalg[PayPal-gebyrer]+Februarsalg[Kreditkortgebyrer]),"") -> -8.5 | M6: =Februarsalg[Forsendelsesgebyr]-Februarsalg[Forsendelsesgebyr2] -> -3 | N6: =Februarsalg[Profit/tab af salg]+Februarsalg[Leveringsprofit/-tab] -> -11.5
A7: =Februarsalg[[#Totals],[Total profit/tab]] -> kr. 224.60 | C7: TS024 | D7: Vare 5 | E7: kr. 10.00 | F7: kr. 12.00 | G7: kr. 2.00 | H7: kr. 1.50 | J7: kr. 14.00 | K7: kr. 7.00 | L7: =IFERROR(Februarsalg[Salgspris]-(Februarsalg[Købspris]+Februarsalg[Onlinegebyrer]+Februarsalg[PayPal-gebyrer]+Februarsalg[Kreditkortgebyrer]),"") -> -1.5 | M7: =Februarsalg[Forsendelsesgebyr]-Februarsalg[Forsendelsesgebyr2] -> kr. 7.00 | N7: =Februarsalg[Profit/tab af salg]+Februarsalg[Leveringsprofit/-tab] -> kr. 5.50
C8: Total | D8: ="Antal solgte varer: "&SUBTOTAL(103,Februarsalg[Varebeskrivelse]) -> Antal solgte varer: 5 | E8: =SUBTOTAL(109,Februarsalg[Købspris]) -> kr. 77.00 | F8: =SUBTOTAL(109,Februarsalg[Salgspris]) -> kr. 312.00 | G8: =SUBTOTAL(109,Februarsalg[Onlinegebyrer]) -> kr. 13.00 | H8: =SUBTOTAL(109,Februarsalg[PayPal-gebyrer]) -> kr. 4.50 | I8: =SUBTOTAL(109,Februarsalg[Kreditkortgebyrer]) -> kr. 5.20 | J8: =SUBTOTAL(109,Februarsalg[Forsendelsesgebyr]) -> kr. 48.50 | K8: =SUBTOTAL(109,Februarsalg[Forsendelsesgebyr2]) -> kr. 36.20 | L8: =SUBTOTAL(109,Februarsalg[Profit/tab af salg]) -> kr. 212.30 | M8: =SUBTOTAL(109,Februarsalg[Leveringsprofit/-tab]) -> kr. 12.30 | N8: =SUBTOTAL(109,Februarsalg[Total profit/tab]) -> kr. 224.60
A9: Profit/tab-tendens

Sheet Marts
A1: MARTS
A2: Onlinesalg | C2: Auktions-id | D2: Varebeskrivelse | E2: Købspris | F2: Salgspris | G2: Onlinegebyrer | H2: PayPal-gebyrer | I2: Kreditkortgebyrer | J2: Forsendelsesgebyr | K2: Forsendelsesgebyr2 | L2: Profit/tab af salg | M2: Leveringsprofit/-tab | N2: Total profit/tab
A3: År | L3: =IFERROR(Martssalg[Salgspris]-(Martssalg[Købspris]+Martssalg[Onlinegebyrer]+Martssalg[PayPal-gebyrer]+Martssalg[Kreditkortgebyrer]),"") -> kr. 0.00 | M3: =Martssalg[Forsendelsesgebyr]-Martssalg[Forsendelsesgebyr2] -> kr. 0.00 | N3: =Martssalg[Profit/tab af salg]+Martssalg[Leveringsprofit/-tab] -> kr. 0.00
A4: =Salgsår -> kr. 2,012.00 | L4: =IFERROR(Martssalg[Salgspris]-(Martssalg[Købspris]+Martssalg[Onlinegebyrer]+Martssalg[PayPal-gebyrer]+Martssalg[Kreditkortgebyrer]),"") -> kr. 0.00 | M4: =Martssalg[Forsendelsesgebyr]-Martssalg[Forsendelsesgebyr2] -> kr. 0.00 | N4: =Martssalg[Profit/tab af salg]+Martssalg[Leveringsprofit/-tab] -> kr. 0.00
L5: =IFERROR(Martssalg[Salgspris]-(Martssalg[Købspris]+Martssalg[Onlinegebyrer]+Martssalg[PayPal-gebyrer]+Martssalg[Kreditkortgebyrer]),"") -> kr. 0.00 | M5: =Martssalg[Forsendelsesgebyr]-Martssalg[Forsendelsesgebyr2] -> kr. 0.00 | N5: =Martssalg[Profit/tab af salg]+Martssalg[Leveringsprofit/-tab] -> kr. 0.00
A6: Total profit/tab | L6: =IFERROR(Martssalg[Salgspris]-(Martssalg[Købspris]+Martssalg[Onlinegebyrer]+Martssalg[PayPal-gebyrer]+Martssalg[Kreditkortgebyrer]),"") -> kr. 0.00 | M6: =Martssalg[Forsendelsesgebyr]-Martssalg[Forsendelsesgebyr2] -> kr. 0.00 | N6: =Martssalg[Profit/tab af salg]+Martssalg[Leveringsprofit/-tab] -> kr. 0.00
A7: =Martssalg[[#Totals],[Total profit/tab]] -> kr. 0.00 | L7: =IFERROR(Martssalg[Salgspris]-(Martssalg[Købspris]+Martssalg[Onlinegebyrer]+Martssalg[PayPal-gebyrer]+Martssalg[Kreditkortgebyrer]),"") -> kr. 0.00 | M7: =Martssalg[Forsendelsesgebyr]-Martssalg[Forsendelsesgebyr2] -> kr. 0.00 | N7: =Martssalg[Profit/tab af salg]+Martssalg[Leveringsprofit/-tab] -> kr. 0.00
C8: Total | D8: ="Antal solgte varer: "&SUBTOTAL(103,Martssalg[Varebeskrivelse]) -> Antal solgte varer: 0 | E8: =SUBTOTAL(109,Martssalg[Købspris]) -> kr. 0.00 | F8: =SUBTOTAL(109,Martssalg[Salgspris]) -> kr. 0.00 | G8: =SUBTOTAL(109,Martssalg[Onlinegebyrer]) -> kr. 0.00 | H8: =SUBTOTAL(109,Martssalg[PayPal-gebyrer]) -> kr. 0.00 | I8: =SUBTOTAL(109,Martssalg[Kreditkortgebyrer]) -> kr. 0.00 | J8: =SUBTOTAL(109,Martssalg[Forsendelsesgebyr]) -> kr. 0.00 | K8: =SUBTOTAL(109,Martssalg[Forsendelsesgebyr2]) -> kr. 0.00 | L8: =SUBTOTAL(109,Martssalg[Profit/tab af salg]) -> kr. 0.00 | M8: =SUBTOTAL(109,Martssalg[Leveringsprofit/-tab]) -> kr. 0.00 | N8: =SUBTOTAL(109,Martssalg[Total profit/tab]) -> kr. 0.00
A9: Profit/tab-tendens

Sheet April
A1: APRIL
A2: Onlinesalg | C2: Auktions-id | D2: Varebeskrivelse | E2: Købspris | F2: Salgspris | G2: Onlinegebyrer | H2: PayPal-gebyrer | I2: Kreditkortgebyrer | J2: Forsendelsesgebyr | K2: Forsendelsesgebyr2 | L2: Profit/tab af salg | M2: Leveringsprofit/-tab | N2: Total profit/tab
A3: År | M3: =Aprilsalg[Forsendelsesgebyr]-Aprilsalg[Forsendelsesgebyr2] -> kr. 0.00 | N3: =Aprilsalg[Profit/tab af salg]+Aprilsalg[Leveringsprofit/-tab] -> kr. 0.00
A4: =Salgsår -> kr. 2,012.00 | M4: =Aprilsalg[Forsendelsesgebyr]-Aprilsalg[Forsendelsesgebyr2] -> kr. 0.00 | N4: =Aprilsalg[Profit/tab af salg]+Aprilsalg[Leveringsprofit/-tab] -> kr. 0.00
M5: =Aprilsalg[Forsendelsesgebyr]-Aprilsalg[Forsendelsesgebyr2] -> kr. 0.00 | N5: =Aprilsalg[Profit/tab af salg]+Aprilsalg[Leveringsprofit/-tab] -> kr. 0.00
A6: Total profit/tab | M6: =Aprilsalg[Forsendelsesgebyr]-Aprilsalg[Forsendelsesgebyr2] -> kr. 0.00 | N6: =Aprilsalg[Profit/tab af salg]+Aprilsalg[Leveringsprofit/-tab] -> kr. 0.00
A7: =Aprilsalg[[#Totals],[Total profit/tab]] -> kr. 0.00 | M7: =Aprilsalg[Forsendelsesgebyr]-Aprilsalg[Forsendelsesgebyr2] -> kr. 0.00 | N7: =Aprilsalg[Profit/tab af salg]+Aprilsalg[Leveringsprofit/-tab] -> kr. 0.00
C8: Total | D8: ="Antal solgte varer: "&SUBTOTAL(103,Aprilsalg[Varebeskrivelse]) -> Antal solgte varer: 0 | E8: =SUBTOTAL(109,Aprilsalg[Købspris]) -> kr. 0.00 | F8: =SUBTOTAL(109,Aprilsalg[Salgspris]) -> kr. 0.00 | G8: =SUBTOTAL(109,Aprilsalg[Onlinegebyrer]) -> kr. 0.00 | H8: =SUBTOTAL(109,Aprilsalg[PayPal-gebyrer]) -> kr. 0.00 | I8: =SUBTOTAL(109,Aprilsalg[Kreditkortgebyrer]) -> kr. 0.00 | J8: =SUBTOTAL(109,Aprilsalg[Forsendelsesgebyr]) -> kr. 0.00 | K8: =SUBTOTAL(109,Aprilsalg[Forsendelsesgebyr2]) -> kr. 0.00 | L8: =SUBTOTAL(109,Aprilsalg[Profit/tab af salg]) -> kr. 0.00 | M8: =SUBTOTAL(109,Aprilsalg[Leveringsprofit/-tab]) -> kr. 0.00 | N8: =SUBTOTAL(109,Aprilsalg[Total profit/tab]) -> kr. 0.00
A9: Profit/tab-tendens

Sheet Maj
A1: MAJ
A2: Onlinesalg | C2: Auktions-id | D2: Varebeskrivelse | E2: Købspris | F2: Salgspris | G2: Onlinegebyrer | H2: PayPal-gebyrer | I2: Kreditkortgebyrer | J2: Forsendelsesgebyr | K2: Forsendelsesgebyr2 | L2: Profit/tab af salg | M2: Leveringsprofit/-tab | N2: Total profit/tab
A3: År | M3: =Majsalg[Forsendelsesgebyr]-Majsalg[Forsendelsesgebyr2] -> kr. 0.00 | N3: =Majsalg[Profit/tab af salg]+Majsalg[Leveringsprofit/-tab] -> kr. 0.00
A4: =Salgsår -> kr. 2,012.00 | M4: =Majsalg[Forsendelsesgebyr]-Majsalg[Forsendelsesgebyr2] -> kr. 0.00 | N4: =Majsalg[Profit/tab af salg]+Majsalg[Leveringsprofit/-tab] -> kr. 0.00
M5: =Majsalg[Forsendelsesgebyr]-Majsalg[Forsendelsesgebyr2] -> kr. 0.00 | N5: =Majsalg[Profit/tab af salg]+Majsalg[Leveringsprofit/-tab] -> kr. 0.00
A6: Total profit/tab | M6: =Majsalg[Forsendelsesgebyr]-Majsalg[Forsendelsesgebyr2] -> kr. 0.00 | N6: =Majsalg[Profit/tab af salg]+Majsalg[Leveringsprofit/-tab] -> kr. 0.00
A7: =Majsalg[[#Totals],[Total profit/tab]] -> kr. 0.00 | M7: =Majsalg[Forsendelsesgebyr]-Majsalg[Forsendelsesgebyr2] -> kr. 0.00 | N7: =Majsalg[Profit/tab af salg]+Majsalg[Leveringsprofit/-tab] -> kr. 0.00
C8: Total | D8: ="Antal solgte varer: "&SUBTOTAL(103,Majsalg[Varebeskrivelse]) -> Antal solgte varer: 0 | E8: =SUBTOTAL(109,Majsalg[Købspris]) -> kr. 0.00 | F8: =SUBTOTAL(109,Majsalg[Salgspris]) -> kr. 0.00 | G8: =SUBTOTAL(109,Majsalg[Onlinegebyrer]) -> kr. 0.00 | H8: =SUBTOTAL(109,Majsalg[PayPal-gebyrer]) -> kr. 0.00 | I8: =SUBTOTAL(109,Majsalg[Kreditkortgebyrer]) -> kr. 0.00 | J8: =SUBTOTAL(109,Majsalg[Forsendelsesgebyr]) -> kr. 0.00 | K8: =SUBTOTAL(109,Majsalg[Forsendelsesgebyr2]) -> kr. 0.00 | L8: =SUBTOTAL(109,Majsalg[Profit/tab af salg]) -> kr. 0.00 | M8: =SUBTOTAL(109,Majsalg[Leveringsprofit/-tab]) -> kr. 0.00 | N8: =SUBTOTAL(109,Majsalg[Total profit/tab]) -> kr. 0.00
A9: Profit/tab-tendens

Sheet Juni
A1: JUNI
A2: Onlinesalg | C2: Auktions-id | D2: Varebeskrivelse | E2: Købspris | F2: Salgspris | G2: Onlinegebyrer | H2: PayPal-gebyrer | I2: Kreditkortgebyrer | J2: Forsendelsesgebyr | K2: Forsendelsesgebyr2 | L2: Profit/tab af salg | M2: Leveringsprofit/-tab | N2: Total profit/tab
A3: År | M3: =Junisalg[Forsendelsesgebyr]-Junisalg[Forsendelsesgebyr2] -> kr. 0.00 | N3: =Junisalg[Profit/tab af salg]+Junisalg[Leveringsprofit/-tab] -> kr. 0.00
A4: =Salgsår -> kr. 2,012.00 | M4: =Junisalg[Forsendelsesgebyr]-Junisalg[Forsendelsesgebyr2] -> kr. 0.00 | N4: =Junisalg[Profit/tab af salg]+Junisalg[Leveringsprofit/-tab] -> kr. 0.00
M5: =Junisalg[Forsendelsesgebyr]-Junisalg[Forsendelsesgebyr2] -> kr. 0.00 | N5: =Junisalg[Profit/tab af salg]+Junisalg[Leveringsprofit/-tab] -> kr. 0.00
A6: Total profit/tab | M6: =Junisalg[Forsendelsesgebyr]-Junisalg[Forsendelsesgebyr2] -> kr. 0.00 | N6: =Junisalg[Profit/tab af salg]+Junisalg[Leveringsprofit/-tab] -> kr. 0.00
A7: =Junisalg[[#Totals],[Total profit/tab]] -> kr. 0.00 | M7: =Junisalg[Forsendelsesgebyr]-Junisalg[Forsendelsesgebyr2] -> kr. 0.00 | N7: =Junisalg[Profit/tab af salg]+Junisalg[Leveringsprofit/-tab] -> kr. 0.00
C8: Total | D8: ="Antal solgte varer: "&SUBTOTAL(103,Junisalg[Varebeskrivelse]) -> Antal solgte varer: 0 | E8: =SUBTOTAL(109,Junisalg[Købspris]) -> kr. 0.00 | F8: =SUBTOTAL(109,Junisalg[Salgspris]) -> kr. 0.00 | G8: =SUBTOTAL(109,Junisalg[Onlinegebyrer]) -> kr. 0.00 | H8: =SUBTOTAL(109,Junisalg[PayPal-gebyrer]) -> kr. 0.00 | I8: =SUBTOTAL(109,Junisalg[Kreditkortgebyrer]) -> kr. 0.00 | J8: =SUBTOTAL(109,Junisalg[Forsendelsesgebyr]) -> kr. 0.00 | K8: =SUBTOTAL(109,Junisalg[Forsendelsesgebyr2]) -> kr. 0.00 | L8: =SUBTOTAL(109,Junisalg[Profit/tab af salg]) -> kr. 0.00 | M8: =SUBTOTAL(109,Junisalg[Leveringsprofit/-tab]) -> kr. 0.00 | N8: =SUBTOTAL(109,Junisalg[Total profit/tab]) -> kr. 0.00
A9: Profit/tab-tendens

Sheet Juli
A1: JULI
A2: Onlinesalg | C2: Auktions-id | D2: Varebeskrivelse | E2: Købspris | F2: Salgspris | G2: Onlinegebyrer | H2: PayPal-gebyrer | I2: Kreditkortgebyrer | J2: Forsendelsesgebyr | K2: Forsendelsesgebyr2 | L2: Profit/tab af salg | M2: Leveringsprofit/-tab | N2: Total profit/tab
A3: År | M3: =Julisalg[Forsendelsesgebyr]-Julisalg[Forsendelsesgebyr2] -> kr. 0.00 | N3: =Julisalg[Profit/tab af salg]+Julisalg[Leveringsprofit/-tab] -> kr. 0.00
A4: =Salgsår -> kr. 2,012.00 | M4: =Julisalg[Forsendelsesgebyr]-Julisalg[Forsendelsesgebyr2] -> kr. 0.00 | N4: =Julisalg[Profit/tab af salg]+Julisalg[Leveringsprofit/-tab] -> kr. 0.00
M5: =Julisalg[Forsendelsesgebyr]-Julisalg[Forsendelsesgebyr2] -> kr. 0.00 | N5: =Julisalg[Profit/tab af salg]+Julisalg[Leveringsprofit/-tab] -> kr. 0.00
A6: Total profit/tab | M6: =Julisalg[Forsendelsesgebyr]-Julisalg[Forsendelsesgebyr2] -> kr. 0.00 | N6: =Julisalg[Profit/tab af salg]+Julisalg[Leveringsprofit/-tab] -> kr. 0.00
A7: =Julisalg[[#Totals],[Total profit/tab]] -> kr. 0.00 | M7: =Julisalg[Forsendelsesgebyr]-Julisalg[Forsendelsesgebyr2] -> kr. 0.00 | N7: =Julisalg[Profit/tab af salg]+Julisalg[Leveringsprofit/-tab] -> kr. 0.00
C8: Total | D8: ="Antal solgte varer: "&SUBTOTAL(103,Julisalg[Varebeskrivelse]) -> Antal solgte varer: 0 | E8: =SUBTOTAL(109,Julisalg[Købspris]) -> kr. 0.00 | F8: =SUBTOTAL(109,Julisalg[Salgspris]) -> kr. 0.00 | G8: =SUBTOTAL(109,Julisalg[Onlinegebyrer]) -> kr. 0.00 | H8: =SUBTOTAL(109,Julisalg[PayPal-gebyrer]) -> kr. 0.00 | I8: =SUBTOTAL(109,Julisalg[Kreditkortgebyrer]) -> kr. 0.00 | J8: =SUBTOTAL(109,Julisalg[Forsendelsesgebyr]) -> kr. 0.00 | K8: =SUBTOTAL(109,Julisalg[Forsendelsesgebyr2]) -> kr. 0.00 | L8: =SUBTOTAL(109,Julisalg[Profit/tab af salg]) -> kr. 0.00 | M8: =SUBTOTAL(109,Julisalg[Leveringsprofit/-tab]) -> kr. 0.00 | N8: =SUBTOTAL(109,Julisalg[Total profit/tab]) -> kr. 0.00
A9: Profit/tab-tendens

Sheet August
A1: AUGUST
A2: Onlinesalg | C2: Auktions-id | D2: Varebeskrivelse | E2: Købspris | F2: Salgspris | G2: Onlinegebyrer | H2: PayPal-gebyrer | I2: Kreditkortgebyrer | J2: Forsendelsesgebyr | K2: Forsendelsesgebyr2 | L2: Profit/tab af salg | M2: Leveringsprofit/-tab | N2: Total profit/tab
A3: År | M3: =Augustsalg[Forsendelsesgebyr]-Augustsalg[Forsendelsesgebyr2] -> kr. 0.00 | N3: =Augustsalg[Profit/tab af salg]+Augustsalg[Leveringsprofit/-tab] -> kr. 0.00
A4: =Salgsår -> kr. 2,012.00 | M4: =Augustsalg[Forsendelsesgebyr]-Augustsalg[Forsendelsesgebyr2] -> kr. 0.00 | N4: =Augustsalg[Profit/tab af salg]+Augustsalg[Leveringsprofit/-tab] -> kr. 0.00
M5: =Augustsalg[Forsendelsesgebyr]-Augustsalg[Forsendelsesgebyr2] -> kr. 0.00 | N5: =Augustsalg[Profit/tab af salg]+Augustsalg[Leveringsprofit/-tab] -> kr. 0.00
A6: Total profit/tab | M6: =Augustsalg[Forsendelsesgebyr]-Augustsalg[Forsendelsesgebyr2] -> kr. 0.00 | N6: =Augustsalg[Profit/tab af salg]+Augustsalg[Leveringsprofit/-tab] -> kr. 0.00
A7: =Augustsalg[[#Totals],[Total profit/tab]] -> kr. 0.00 | M7: =Augustsalg[Forsendelsesgebyr]-Augustsalg[Forsendelsesgebyr2] -> kr. 0.00 | N7: =Augustsalg[Profit/tab af salg]+Augustsalg[Leveringsprofit/-tab] -> kr. 0.00
C8: Total | D8: ="Antal solgte varer: "&SUBTOTAL(103,Augustsalg[Varebeskrivelse]) -> Antal solgte varer: 0 | E8: =SUBTOTAL(109,Augustsalg[Købspris]) -> kr. 0.00 | F8: =SUBTOTAL(109,Augustsalg[Salgspris]) -> kr. 0.00 | G8: =SUBTOTAL(109,Augustsalg[Onlinegebyrer]) -> kr. 0.00 | H8: =SUBTOTAL(109,Augustsalg[PayPal-gebyrer]) -> kr. 0.00 | I8: =SUBTOTAL(109,Augustsalg[Kreditkortgebyrer]) -> kr. 0.00 | J8: =SUBTOTAL(109,Augustsalg[Forsendelsesgebyr]) -> kr. 0.00 | K8: =SUBTOTAL(109,Augustsalg[Forsendelsesgebyr2]) -> kr. 0.00 | L8: =SUBTOTAL(109,Augustsalg[Profit/tab af salg]) -> kr. 0.00 | M8: =SUBTOTAL(109,Augustsalg[Leveringsprofit/-tab]) -> kr. 0.00 | N8: =SUBTOTAL(109,Augustsalg[Total profit/tab]) -> kr. 0.00
A9: Profit/tab-tendens

Sheet September
A1: SEPTEMBER
A2: Onlinesalg | C2: Auktions-id | D2: Varebeskrivelse | E2: Købspris | F2: Salgspris | G2: Onlinegebyrer | H2: PayPal-gebyrer | I2: Kreditkortgebyrer | J2: Forsendelsesgebyr | K2: Forsendelsesgebyr2 | L2: Profit/tab af salg | M2: Leveringsprofit/-tab | N2: Total profit/tab
A3: År | M3: =Septembersalg[Forsendelsesgebyr]-Septembersalg[Forsendelsesgebyr2] -> kr. 0.00 | N3: =Septembersalg[Profit/tab af salg]+Septembersalg[Leveringsprofit/-tab] -> kr. 0.00
A4: =Salgsår -> kr. 2,012.00 | M4: =Septembersalg[Forsendelsesgebyr]-Septembersalg[Forsendelsesgebyr2] -> kr. 0.00 | N4: =Septembersalg[Profit/tab af salg]+Septembersalg[Leveringsprofit/-tab] -> kr. 0.00
M5: =Septembersalg[Forsendelsesgebyr]-Septembersalg[Forsendelsesgebyr2] -> kr. 0.00 | N5: =Septembersalg[Profit/tab af salg]+Septembersalg[Leveringsprofit/-tab] -> kr. 0.00
A6: Total profit/tab | M6: =Septembersalg[Forsendelsesgebyr]-Septembersalg[Forsendelsesgebyr2] -> kr. 0.00 | N6: =Septembersalg[Profit/tab af salg]+Septembersalg[Leveringsprofit/-tab] -> kr. 0.00
A7: =Septembersalg[[#Totals],[Total profit/tab]] -> kr. 0.00 | M7: =Septembersalg[Forsendelsesgebyr]-Septembersalg[Forsendelsesgebyr2] -> kr. 0.00 | N7: =Septembersalg[Profit/tab af salg]+Septembersalg[Leveringsprofit/-tab] -> kr. 0.00
C8: Total | D8: ="Antal solgte varer: "&SUBTOTAL(103,Septembersalg[Varebeskrivelse]) -> Antal solgte varer: 0 | E8: =SUBTOTAL(109,Septembersalg[Købspris]) -> kr. 0.00 | F8: =SUBTOTAL(109,Septembersalg[Salgspris]) -> kr. 0.00 | G8: =SUBTOTAL(109,Septembersalg[Onlinegebyrer]) -> kr. 0.00 | H8: =SUBTOTAL(109,Septembersalg[PayPal-gebyrer]) -> kr. 0.00 | I8: =SUBTOTAL(109,Septembersalg[Kreditkortgebyrer]) -> kr. 0.00 | J8: =SUBTOTAL(109,Septembersalg[Forsendelsesgebyr]) -> kr. 0.00 | K8: =SUBTOTAL(109,Septembersalg[Forsendelsesgebyr2]) -> kr. 0.00 | L8: =SUBTOTAL(109,Septembersalg[Profit/tab af salg]) -> kr. 0.00 | M8: =SUBTOTAL(109,Septembersalg[Leveringsprofit/-tab]) -> kr. 0.00 | N8: =SUBTOTAL(109,Septembersalg[Total profit/tab]) -> kr. 0.00
A9: Profit/tab-tendens

Sheet Oktober
A1: OKTOBER
A2: Onlinesalg | C2: Auktions-id | D2: Varebeskrivelse | E2: Købspris | F2: Salgspris | G2: Onlinegebyrer | H2: PayPal-gebyrer | I2: Kreditkortgebyrer | J2: Forsendelsesgebyr | K2: Forsendelsesgebyr2 | L2: Profit/tab af salg | M2: Leveringsprofit/-tab | N2: Total profit/tab
A3: År | M3: =Oktobersalg[Forsendelsesgebyr]-Oktobersalg[Forsendelsesgebyr2] -> kr. 0.00 | N3: =Oktobersalg[Profit/tab af salg]+Oktobersalg[Leveringsprofit/-tab] -> kr. 0.00
A4: =Salgsår -> kr. 2,012.00 | M4: =Oktobersalg[Forsendelsesgebyr]-Oktobersalg[Forsendelsesgebyr2] -> kr. 0.00 | N4: =Oktobersalg[Profit/tab af salg]+Oktobersalg[Leveringsprofit/-tab] -> kr. 0.00
M5: =Oktobersalg[Forsendelsesgebyr]-Oktobersalg[Forsendelsesgebyr2] -> kr. 0.00 | N5: =Oktobersalg[Profit/tab af salg]+Oktobersalg[Leveringsprofit/-tab] -> kr. 0.00
A6: Total profit/tab | M6: =Oktobersalg[Forsendelsesgebyr]-Oktobersalg[Forsendelsesgebyr2] -> kr. 0.00 | N6: =Oktobersalg[Profit/tab af salg]+Oktobersalg[Leveringsprofit/-tab] -> kr. 0.00
A7: =Oktobersalg[[#Totals],[Total profit/tab]] -> kr. 0.00 | M7: =Oktobersalg[Forsendelsesgebyr]-Oktobersalg[Forsendelsesgebyr2] -> kr. 0.00 | N7: =Oktobersalg[Profit/tab af salg]+Oktobersalg[Leveringsprofit/-tab] -> kr. 0.00
C8: Total | D8: ="Antal solgte varer: "&SUBTOTAL(103,Oktobersalg[Varebeskrivelse]) -> Antal solgte varer: 0 | E8: =SUBTOTAL(109,Oktobersalg[Købspris]) -> kr. 0.00 | F8: =SUBTOTAL(109,Oktobersalg[Salgspris]) -> kr. 0.00 | G8: =SUBTOTAL(109,Oktobersalg[Onlinegebyrer]) -> kr. 0.00 | H8: =SUBTOTAL(109,Oktobersalg[PayPal-gebyrer]) -> kr. 0.00 | I8: =SUBTOTAL(109,Oktobersalg[Kreditkortgebyrer]) -> kr. 0.00 | J8: =SUBTOTAL(109,Oktobersalg[Forsendelsesgebyr]) -> kr. 0.00 | K8: =SUBTOTAL(109,Oktobersalg[Forsendelsesgebyr2]) -> kr. 0.00 | L8: =SUBTOTAL(109,Oktobersalg[Profit/tab af salg]) -> kr. 0.00 | M8: =SUBTOTAL(109,Oktobersalg[Leveringsprofit/-tab]) -> kr. 0.00 | N8: =SUBTOTAL(109,Oktobersalg[Total profit/tab]) -> kr. 0.00
A9: Profit/tab-tendens

Sheet November
A1: NOVEMBER
A2: Onlinesalg | C2: Auktions-id | D2: Varebeskrivelse | E2: Købspris | F2: Salgspris | G2: Onlinegebyrer | H2: PayPal-gebyrer | I2: Kreditkortgebyrer | J2: Forsendelsesgebyr | K2: Forsendelsesgebyr2 | L2: Profit/tab af salg | M2: Leveringsprofit/-tab | N2: Total profit/tab
A3: År | M3: =Novembersalg[Forsendelsesgebyr]-Novembersalg[Forsendelsesgebyr2] -> kr. 0.00 | N3: =Novembersalg[Profit/tab af salg]+Novembersalg[Leveringsprofit/-tab] -> kr. 0.00
A4: =Salgsår -> kr. 2,012.00 | M4: =Novembersalg[Forsendelsesgebyr]-Novembersalg[Forsendelsesgebyr2] -> kr. 0.00 | N4: =Novembersalg[Profit/tab af salg]+Novembersalg[Leveringsprofit/-tab] -> kr. 0.00
M5: =Novembersalg[Forsendelsesgebyr]-Novembersalg[Forsendelsesgebyr2] -> kr. 0.00 | N5: =Novembersalg[Profit/tab af salg]+Novembersalg[Leveringsprofit/-tab] -> kr. 0.00
A6: Total profit/tab | M6: =Novembersalg[Forsendelsesgebyr]-Novembersalg[Forsendelsesgebyr2] -> kr. 0.00 | N6: =Novembersalg[Profit/tab af salg]+Novembersalg[Leveringsprofit/-tab] -> kr. 0.00
A7: =Novembersalg[[#Totals],[Total profit/tab]] -> kr. 0.00 | M7: =Novembersalg[Forsendelsesgebyr]-Novembersalg[Forsendelsesgebyr2] -> kr. 0.00 | N7: =Novembersalg[Profit/tab af salg]+Novembersalg[Leveringsprofit/-tab] -> kr. 0.00
C8: Total | D8: ="Antal solgte varer: "&SUBTOTAL(103,Novembersalg[Varebeskrivelse]) -> Antal solgte varer: 0 | E8: =SUBTOTAL(109,Novembersalg[Købspris]) -> kr. 0.00 | F8: =SUBTOTAL(109,Novembersalg[Salgspris]) -> kr. 0.00 | G8: =SUBTOTAL(109,Novembersalg[Onlinegebyrer]) -> kr. 0.00 | H8: =SUBTOTAL(109,Novembersalg[PayPal-gebyrer]) -> kr. 0.00 | I8: =SUBTOTAL(109,Novembersalg[Kreditkortgebyrer]) -> kr. 0.00 | J8: =SUBTOTAL(109,Novembersalg[Forsendelsesgebyr]) -> kr. 0.00 | K8: =SUBTOTAL(109,Novembersalg[Forsendelsesgebyr2]) -> kr. 0.00 | L8: =SUBTOTAL(109,Novembersalg[Profit/tab af salg]) -> kr. 0.00 | M8: =SUBTOTAL(109,Novembersalg[Leveringsprofit/-tab]) -> kr. 0.00 | N8: =SUBTOTAL(109,Novembersalg[Total profit/tab]) -> kr. 0.00
A9: Profit/tab-tendens

Sheet December
A1: DECEMBER
A2: Onlinesalg | C2: Auktions-id | D2: Varebeskrivelse | E2: Købspris | F2: Salgspris | G2: Onlinegebyrer | H2: PayPal-gebyrer | I2: Kreditkortgebyrer | J2: Forsendelsesgebyr | K2: Forsendelsesgebyr2 | L2: Profit/tab af salg | M2: Leveringsprofit/-tab | N2: Total profit/tab
A3: År | M3: =Decembersalg[Forsendelsesgebyr]-Decembersalg[Forsendelsesgebyr2] -> kr. 0.00 | N3: =Decembersalg[Profit/tab af salg]+Decembersalg[Leveringsprofit/-tab] -> kr. 0.00
A4: =Salgsår -> kr. 2,012.00 | M4: =Decembersalg[Forsendelsesgebyr]-Decembersalg[Forsendelsesgebyr2] -> kr. 0.00 | N4: =Decembersalg[Profit/tab af salg]+Decembersalg[Leveringsprofit/-tab] -> kr. 0.00
M5: =Decembersalg[Forsendelsesgebyr]-Decembersalg[Forsendelsesgebyr2] -> kr. 0.00 | N5: =Decembersalg[Profit/tab af salg]+Decembersalg[Leveringsprofit/-tab] -> kr. 0.00
A6: Total profit/tab | M6: =Decembersalg[Forsendelsesgebyr]-Decembersalg[Forsendelsesgebyr2] -> kr. 0.00 | N6: =Decembersalg[Profit/tab af salg]+Decembersalg[Leveringsprofit/-tab] -> kr. 0.00
A7: =Decembersalg[[#Totals],[Total profit/tab]] -> kr. 0.00 | M7: =Decembersalg[Forsendelsesgebyr]-Decembersalg[Forsendelsesgebyr2] -> kr. 0.00 | N7: =Decembersalg[Profit/tab af salg]+Decembersalg[Leveringsprofit/-tab] -> kr. 0.00
C8: Total | D8: ="Antal solgte varer: "&SUBTOTAL(103,Decembersalg[Varebeskrivelse]) -> Antal solgte varer: 0 | E8: =SUBTOTAL(109,Decembersalg[Købspris]) -> kr. 0.00 | F8: =SUBTOTAL(109,Decembersalg[Salgspris]) -> kr. 0.00 | G8: =SUBTOTAL(109,Decembersalg[Onlinegebyrer]) -> kr. 0.00 | H8: =SUBTOTAL(109,Decembersalg[PayPal-gebyrer]) -> kr. 0.00 | I8: =SUBTOTAL(109,Decembersalg[Kreditkortgebyrer]) -> kr. 0.00 | J8: =SUBTOTAL(109,Decembersalg[Forsendelsesgebyr]) -> kr. 0.00 | K8: =SUBTOTAL(109,Decembersalg[Forsendelsesgebyr2]) -> kr. 0.00 | L8: =SUBTOTAL(109,Decembersalg[Profit/tab af salg]) -> kr. 0.00 | M8: =SUBTOTAL(109,Decembersalg[Leveringsprofit/-tab]) -> kr. 0.00 | N8: =SUBTOTAL(109,Decembersalg[Total profit/tab]) -> kr. 0.00
A9: Profit/tab-tendens

Sheet År til dato-oversigt
A1: ÅTD
A2: Oversigt | C2: Profit/tab | H2: År til dato Profit/tab
A3: År | H3: Måned | I3: Salgsprofit/-tab | J3: Leveringsprofit/-tab | K3: Total profit/tab
A4: =Salgsår -> 2012 | H4: Januar | I4: =Januarsalg[[#Totals],[Profit/tab af salg]] -> kr. 79.50 | J4: =Januarsalg[[#Totals],[Leveringsprofit/-tab]] -> kr. 9.50 | K4: =IF(AND(ÅTDoversigt[[#This Row],[Salgsprofit/-tab]]<>"",ÅTDoversigt[[#This Row],[Leveringsprofit/-tab]]<>""),ÅTDoversigt[[#This Row],[Salgsprofit/-tab]]+ÅTDoversigt[[#This Row],[Leveringsprofit/-tab]],"") -> kr. 89.00
H5: Februar | I5: =Februarsalg[[#Totals],[Profit/tab af salg]] -> kr. 212.30 | J5: =Februarsalg[[#Totals],[Leveringsprofit/-tab]] -> kr. 12.30 | K5: =IF(AND(ÅTDoversigt[[#This Row],[Salgsprofit/-tab]]<>"",ÅTDoversigt[[#This Row],[Leveringsprofit/-tab]]<>""),ÅTDoversigt[[#This Row],[Salgsprofit/-tab]]+ÅTDoversigt[[#This Row],[Leveringsprofit/-tab]],"") -> kr. 224.60
A6: Månedlig salgstendens: | H6: Marts | I6: =Martssalg[[#Totals],[Profit/tab af salg]] -> kr. 0.00 | J6: =Martssalg[[#Totals],[Leveringsprofit/-tab]] -> kr. 0.00 | K6: =IF(AND(ÅTDoversigt[[#This Row],[Salgsprofit/-tab]]<>"",ÅTDoversigt[[#This Row],[Leveringsprofit/-tab]]<>""),ÅTDoversigt[[#This Row],[Salgsprofit/-tab]]+ÅTDoversigt[[#This Row],[Leveringsprofit/-tab]],"") -> kr. 0.00
H7: April | I7: =Aprilsalg[[#Totals],[Profit/tab af salg]] -> kr. 0.00 | J7: =Aprilsalg[[#Totals],[Leveringsprofit/-tab]] -> kr. 0.00 | K7: =IF(AND(ÅTDoversigt[[#This Row],[Salgsprofit/-tab]]<>"",ÅTDoversigt[[#This Row],[Leveringsprofit/-tab]]<>""),ÅTDoversigt[[#This Row],[Salgsprofit/-tab]]+ÅTDoversigt[[#This Row],[Leveringsprofit/-tab]],"") -> kr. 0.00
H8: Maj | I8: =Majsalg[[#Totals],[Profit/tab af salg]] -> kr. 0.00 | J8: =Majsalg[[#Totals],[Leveringsprofit/-tab]] -> kr. 0.00 | K8: =IF(AND(ÅTDoversigt[[#This Row],[Salgsprofit/-tab]]<>"",ÅTDoversigt[[#This Row],[Leveringsprofit/-tab]]<>""),ÅTDoversigt[[#This Row],[Salgsprofit/-tab]]+ÅTDoversigt[[#This Row],[Leveringsprofit/-tab]],"") -> kr. 0.00
H9: Juni | I9: =Junisalg[[#Totals],[Profit/tab af salg]] -> kr. 0.00 | J9: =Junisalg[[#Totals],[Leveringsprofit/-tab]] -> kr. 0.00 | K9: =IF(AND(ÅTDoversigt[[#This Row],[Salgsprofit/-tab]]<>"",ÅTDoversigt[[#This Row],[Leveringsprofit/-tab]]<>""),ÅTDoversigt[[#This Row],[Salgsprofit/-tab]]+ÅTDoversigt[[#This Row],[Leveringsprofit/-tab]],"") -> kr. 0.00
H10: Juli | I10: =Julisalg[[#Totals],[Profit/tab af salg]] -> kr. 0.00 | J10: =Julisalg[[#Totals],[Leveringsprofit/-tab]] -> kr. 0.00 | K10: =IF(AND(ÅTDoversigt[[#This Row],[Salgsprofit/-tab]]<>"",ÅTDoversigt[[#This Row],[Leveringsprofit/-tab]]<>""),ÅTDoversigt[[#This Row],[Salgsprofit/-tab]]+ÅTDoversigt[[#This Row],[Leveringsprofit/-tab]],"") -> kr. 0.00
H11: August | I11: =Augustsalg[[#Totals],[Profit/tab af salg]] -> kr. 0.00 | J11: =Augustsalg[[#Totals],[Leveringsprofit/-tab]] -> kr. 0.00 | K11: =IF(AND(ÅTDoversigt[[#This Row],[Salgsprofit/-tab]]<>"",ÅTDoversigt[[#This Row],[Leveringsprofit/-tab]]<>""),ÅTDoversigt[[#This Row],[Salgsprofit/-tab]]+ÅTDoversigt[[#This Row],[Leveringsprofit/-tab]],"") -> kr. 0.00
H12: September | I12: =Septembersalg[[#Totals],[Profit/tab af salg]] -> kr. 0.00 | J12: =Septembersalg[[#Totals],[Leveringsprofit/-tab]] -> kr. 0.00 | K12: =IF(AND(ÅTDoversigt[[#This Row],[Salgsprofit/-tab]]<>"",ÅTDoversigt[[#This Row],[Leveringsprofit/-tab]]<>""),ÅTDoversigt[[#This Row],[Salgsprofit/-tab]]+ÅTDoversigt[[#This Row],[Leveringsprofit/-tab]],"") -> kr. 0.00
H13: Oktober | I13: =Oktobersalg[[#Totals],[Profit/tab af salg]] -> kr. 0.00 | J13: =Oktobersalg[[#Totals],[Leveringsprofit/-tab]] -> kr. 0.00 | K13: =IF(AND(ÅTDoversigt[[#This Row],[Salgsprofit/-tab]]<>"",ÅTDoversigt[[#This Row],[Leveringsprofit/-tab]]<>""),ÅTDoversigt[[#This Row],[Salgsprofit/-tab]]+ÅTDoversigt[[#This Row],[Leveringsprofit/-tab]],"") -> kr. 0.00
H14: November | I14: =Novembersalg[[#Totals],[Profit/tab af salg]] -> kr. 0.00 | J14: =Novembersalg[[#Totals],[Leveringsprofit/-tab]] -> kr. 0.00 | K14: =IF(AND(ÅTDoversigt[[#This Row],[Salgsprofit/-tab]]<>"",ÅTDoversigt[[#This Row],[Leveringsprofit/-tab]]<>""),ÅTDoversigt[[#This Row],[Salgsprofit/-tab]]+ÅTDoversigt[[#This Row],[Leveringsprofit/-tab]],"") -> kr. 0.00
H15: December | I15: =Decembersalg[[#Totals],[Profit/tab af salg]] -> kr. 0.00 | J15: =Decembersalg[[#Totals],[Leveringsprofit/-tab]] -> kr. 0.00 | K15: =IF(AND(ÅTDoversigt[[#This Row],[Salgsprofit/-tab]]<>"",ÅTDoversigt[[#This Row],[Leveringsprofit/-tab]]<>""),ÅTDoversigt[[#This Row],[Salgsprofit/-tab]]+ÅTDoversigt[[#This Row],[Leveringsprofit/-tab]],"") -> kr. 0.00
H16: Totaler | I16: =SUBTOTAL(109,ÅTDoversigt[Salgsprofit/-tab]) -> kr. 291.80 | J16: =SUBTOTAL(109,ÅTDoversigt[Leveringsprofit/-tab]) -> kr. 21.80 | K16: =SUBTOTAL(109,ÅTDoversigt[Total profit/tab]) -> kr. 313.60
